Cogmind - Beta 13 @@@ ROGUE MODE // 2024.04.24 @ 16:12:02 Player: jupart Result: Self-destructed Performance ------------- Evolutions (1) 500 Regions Visited (4) 800 Robots Destroyed (9) 45 Value Destroyed (251) 251 Prototype IDs (0) 0 Alien Tech Used (0) 0 Bonus (0) 0 TOTAL SCORE: 1596 Bonus ------- None Cogmind --------- Core Integrity 277/400 Matter 300/300 Energy 160/160 System Corruption 0% Temperature Cool (0) Movement Walking (120) Location -9/Mines Parts ------- > --- POWER (1) -------- Light Nuclear Core > --- PROPULSION (2) --- Aluminum Leg Aluminum Leg > --- UTILITY (4) ------ Small Storage Unit Core Shielding > --- WEAPON (2) ------- Spread Laser Autogun > --- INVENTORY (8) ---- Light Ion Engine Light Ion Engine Light Treads Light Treads Medium Laser Rocket Launcher Peak State ------------ > --- POWER ------------ Light Nuclear Core > --- PROPULSION ------- Light Treads Light Treads > --- UTILITY ---------- Small Storage Unit Improved Targeting Computer Core Shielding > --- WEAPON ----------- Spread Laser Autogun > --- INVENTORY -------- Light Ion Engine Light Ion Engine Aluminum Leg Aluminum Leg Medium Laser Rocket Launcher [Rating: 13] Favorites ----------- Power Light Nuclear Core Engine Ion Engine Power Core Light Nuclear Core Propulsion Light Treads Treads Light Treads Leg Aluminum Leg Utility Small Storage Unit Storage Small Storage Unit Processor Improved Targeting Computer Protection Core Shielding Weapon Autogun Energy Gun Spread Laser Ballistic Gun Autogun Build | -11 -10 -10 -9 -9 ------- Run | Yrd Mat Min Mat Min Slots Evolved 2 | . . . 2 . Power . | . . . . . Propulsion . | . . . . . Utility 2 | . . . 2 . Weapon . | . . . . . Parts Attached 13 | . 9 1 1 2 Power 3 | . 2 1 . . Engine 1 | . 1 . . . Core 2 | . 1 1 . . Reactor . | . . . . . Propulsion 5 | . 3 . . 2 Treads 3 | . 3 . . . Leg 2 | . . . . 2 Wheel . | . . . . . Hover . | . . . . . Flight . | . . . . . Utility 3 | . 2 . 1 . Device . | . . . . . Storage . | . . . . . Processor 1 | . 1 . . . Hackware . | . . . . . Protection 2 | . 1 . 1 . Artifact . | . . . . . Weapon 2 | . 2 . . . Energy Gun 1 | . 1 . . . Energy Cannon . | . . . . . Ballistic Gun 1 | . 1 . . . Ballistic Cannon . | . . . . . Launcher . | . . . . . Special Weapon . | . . . . . Impact Weapon . | . . . . . Slashing Weapon . | . . . . . Piercing Weapon . | . . . . . Special Melee Weapon . | . . . . . Unidentified Prototypes . | . . . . . Parts Lost 1 | . . . . 1 Power . | . . . . . Propulsion . | . . . . . Utility 1 | . . . . 1 Weapon . | . . . . . Highest Loss Streak 1 | . . . . 1 To Critical Strikes . | . . . . . Average Slot Usage (%) 97 | . 99 100 84 84 Engine 3 | . 13 . . . Core 9 | . . 14 11 11 Treads 24 | . 26 28 22 . Leg 2 | . 1 . . 22 Storage 13 | . 14 14 11 11 Processor 10 | . 3 14 11 7 Protection 4 | . 10 . 7 11 Energy Gun 13 | . 14 14 11 11 Ballistic Gun 13 | . 14 14 11 11 Naked Turns . | . . . . . Heaviest Build 17 | 12 16 16 17 17 Greatest Support 40 | 20 40 40 40 40 Greatest Overweight (x) . | . . . . . Average Overweight (x) . | . . . . . Largest Inventory Capacity 8 | . 8 8 8 8 Average Capacity 8 | . 8 8 8 8 Most Carried 8 | . 8 8 7 7 Average Carried 7 | . 6 7 6 6 Final Capacity 8 | 8 8 8 8 8 Final Carried 8 | 6 8 7 6 6 Class Distribution -------------------- 100% | Mutant Dominant Class ---------------- Mutant | -10/Materials Mutant | -10/Mines Mutant | -9/Materials Mutant | -9/Mines Resources | -11 -10 -10 -9 -9 ----------- Run | Yrd Mat Min Mat Min Matter Collected 383 | 200 123 30 10 20 Remotely . | . . . . . Salvage Created 237 | . 163 74 . . Parts 23 | . 16 5 2 . Haulers Intercepted . | . . . . . Recyclers Shooed . | . . . . . Parts Field Recycled . | . . . . . Retrieved Matter . | . . . . . Parts Self-Destructed . | . . . . . Prevented . | . . . . . Kills | -11 -10 -10 -9 -9 ------- Run | Yrd Mat Min Mat Min Combat Hostiles Destroyed 8 | . 6 2 . . Guns 8 | . 6 2 . . Classes Destroyed 3 | . 2 . 1 . Builder 1 | . . . 1 . Swarmer 3 | . 3 . . . Grunt 5 | . 3 2 . . Best Kill Streak 5 | . 5 2 1 . Combat Bots Only 5 | . 5 2 . . Max Kills in Single Turn 1 | . 1 1 1 . Gunslinging . | . . . . . Exploded . | . . . . . Melee . | . . . . . Uniques/NPCs Destroyed . | . . . . . Combat | -11 -10 -10 -9 -9 -------- Run | Yrd Mat Min Mat Min Hostile Shots Fired 78 | . 18 6 14 40 Missed 23 | . 1 . 5 17 Damage Taken 623 | . 208 78 72 265 Core 190 | . 25 42 20 103 Absorbed by Shields . | . . . . . Redirected to Shielding 26 | . 2 . 3 21 Core Remaining (%) 86 | 100 . 73 . . Volleys Fired 14 | . 9 5 . . Largest 2 | . 2 2 . . Hottest 88 | . 88 88 . . Shots Fired 28 | . 18 10 . . Gun 28 | . 18 10 . . Cannon . | . . . . . Launcher . | . . . . . Special . | . . . . . Kinetic 14 | . 9 5 . . Thermal 11 | . 6 5 . . Explosive . | . . . . . Electromagnetic 3 | . 3 . . . Robot Hit Streak 18 | . 18 8 . . Robot Miss Streak 1 | . 1 1 . . Penetration Max . | . . . . . Secondary Targets 2 | . 2 . . . Max Gunslinging Chain 1 | . 1 . . . Shots Hit Robots 23 | . 16 7 . . Core Hits 31 | . 19 11 . 1 Critical Kills . | . . . . . Critical Parts Destroyed . | . . . . . Critical Strikes . | . . . . . Melee Attacks . | . . . . . Impact . | . . . . . Slashing . | . . . . . Piercing . | . . . . . Sneak Attacks . | . . . . . Combat Hostiles . | . . . . . Follow-up Attacks . | . . . . . Damage Inflicted 431 | . 294 119 10 8 Guns 387 | . 268 119 . . Cannons . | . . . . . Explosions 26 | . 26 . . . Melee . | . . . . . Ramming 18 | . . . 10 8 Kinetic 161 | . 129 32 . . Thermal 237 | . 150 87 . . Explosive . | . . . . . Electromagnetic 15 | . 15 . . . Impact . | . . . . . Slashing . | . . . . . Piercing . | . . . . . Highest Corruption . | . . . . . Average Corruption . | . . . . . Corruption Purged . | . . . . . Corruption Blocked . | . . . . . Overload Shots . | . . . . . Overflow Damage . | . . . . . Projectiles . | . . . . . Explosions . | . . . . . Melee . | . . . . . Knockbacks . | . . . . . Impact . | . . . . . Kinetic . | . . . . . Secondary . | . . . . . Self-Inflicted Damage 26 | . 26 . . . Shots 1 | . 1 . . . Rammed 1 | . . 1 . . Targets Rammed 4 | . . 1 1 2 Kicked 2 | . . . . 2 Crushed 1 | . . . 1 . Highest Temperature 259 | . 259 251 . . Average Temperature 115 | . 106 128 . . Received Heat Transfer 159 | . 69 45 . 45 Siege Activations . | . . . . . Robots Corrupted . | . . . . . Combat Hostiles . | . . . . . Parts Fried . | . . . . . Impact Corruptions . | . . . . . Robots Melted . | . . . . . Combat Hostiles . | . . . . . Parts Melted . | . . . . . Heat Transferred 305 | . 200 105 . . Parts Sabotaged . | . . . . . Parts Stolen . | . . . . . Parts Stripped . | . . . . . Power Chain Reactions 1 | . 1 . . . Alert | -11 -10 -10 -9 -9 ------- Run | Yrd Mat Min Mat Min Peak Influence 172 | . 172 116 5 36 Initial 66 | . . 66 . 1 Average 32 | . 26 43 2 7 Maximum Alert Level . | . . . . . Low Security (%) 100 | . 100 100 100 100 Level 1 . | . . . . . Level 2 . | . . . . . Level 3 . | . . . . . Level 4 . | . . . . . Level 5 . | . . . . . High Security . | . . . . . Max Security . | . . . . . Squads Dispatched 1 | . . . 1 . Investigation . | . . . . . Extermination . | . . . . . Reinforcement 1 | . . . 1 . Assault . | . . . . . Garrison . | . . . . . Intercept . | . . . . . Searches Triggered . | . . . . . Construction Impeded . | . . . . . Haulers Reinforced . | . . . . . Active Scanning Responses . | . . . . . Cargo Convoy Interrupts . | . . . . . Stealth | -11 -10 -10 -9 -9 --------- Run | Yrd Mat Min Mat Min Distress Signals 2 | . 2 . . . Communications Jammed . | . . . . . Distress Signals . | . . . . . Times Spotted 25 | . 10 2 3 10 Peak Tracking Total 10 | . 6 2 3 10 Tactical Retreats 1 | . . . . 1 Traps | -11 -10 -10 -9 -9 ------- Run | Yrd Mat Min Mat Min Traps Triggered 1 | . 1 . . . Indirectly . | . . . . . Trap Hack Attempts . | . . . . . Triggered . | . . . . . Disarmed . | . . . . . Reprogrammed . | . . . . . Reused . | . . . . . Traps Extracted . | . . . . . Installed . | . . . . . Triggered . | . . . . . Machines | -11 -10 -10 -9 -9 ---------- Run | Yrd Mat Min Mat Min Machines Disabled 2 | . 2 . . . Max in Single Turn 1 | . 1 . . . Machines Repaired . | . . . . . Machines Dismantled . | . . . . . Machines Sabotaged . | . . . . . Overloaded Fab Kills . | . . . . . Hacking | -11 -10 -10 -9 -9 --------- Run | Yrd Mat Min Mat Min Machines Accessed 1 | . 1 . . . Terminals 1 | . 1 . . . Fabricators . | . . . . . Repair Stations . | . . . . . Recycling Units . | . . . . . Scanalyzers . | . . . . . Garrison Access . | . . . . . Total Hacks 1 | . 1 . . . Successful 1 | . 1 . . . Failed . | . . . . . Catastrophic . | . . . . . Database Lockouts . | . . . . . Manual . | . . . . . Terminals 1 | . 1 . . . Fabricators . | . . . . . Repair Stations . | . . . . . Recycling Units . | . . . . . Scanalyzers . | . . . . . Garrison Access . | . . . . . Terminal Hacks 1 | . 1 . . . Branch Access Points 1 | . 1 . . . Fabricator Hacks . | . . . . . Repair Station Hacks . | . . . . . Recycling Unit Hacks . | . . . . . Scanalyzer . | . . . . . Garrison Access Hacks . | . . . . . Unauthorized Hacks . | . . . . . Terminals . | . . . . . Fabricators . | . . . . . Repair Stations . | . . . . . Recycling Units . | . . . . . Scanalyzers . | . . . . . Garrison Access . | . . . . . Data Cores Recovered . | . . . . . Used . | . . . . . Hacking Detections . | . . . . . Full Trace Events . | . . . . . Feedback Events . | . . . . . Feedback Blocked . | . . . . . Robot Schematics Acquired . | . . . . . Robots Built . | . . . . . Authchips . | . . . . . Time . | . . . . . Total Robot Build Rating . | . . . . . Part Schematics Acquired . | . . . . . Parts Built . | . . . . . Authchips . | . . . . . Time . | . . . . . Total Part Build Rating . | . . . . . Parts Repaired . | . . . . . Time . | . . . . . Parts Recycled . | . . . . . Recycled Matter . | . . . . . Retrieved Matter . | . . . . . Retrieved Components . | . . . . . Parts Scanalyzed . | . . . . . Part Schematics Acquired . | . . . . . Parts Damaged . | . . . . . Bothacking | -11 -10 -10 -9 -9 ------------ Run | Yrd Mat Min Mat Min Used RIF Installer . | . . . . . Robots Hacked . | . . . . . Non-combat . | . . . . . Combat . | . . . . . Robot Hacks Applied . | . . . . . Relay Couplers Released . | . . . . . Fabnet Peak Effective % . | . . . . . Robots Rewired . | . . . . . Allies Hacked . | . . . . . Hacks Repelled . | . . . . . Allies | -11 -10 -10 -9 -9 -------- Run | Yrd Mat Min Mat Min Total Allies . | . . . . . Largest Group . | . . . . . Highest-Rated Group . | . . . . . Highest-Rated Ally . | . . . . . Total Orders . | . . . . . Ally Attacks . | . . . . . Total Damage . | . . . . . Kills . | . . . . . Allies Corrupted . | . . . . . Allies Melted . | . . . . . Intel | -11 -10 -10 -9 -9 ------- Run | Yrd Mat Min Mat Min Robot Analysis Total . | . . . . . Derelict Logs Recovered 2 | . . 1 . 1 Drone Launches . | . . . . . Drone Recoveries . | . . . . . Exploration | -11 -10 -10 -9 -9 ------------- Run | Yrd Mat Min Mat Min Turns Passed 1421 | . 397 782 103 139 Spaces Moved 841 | 1 196 477 56 111 Core . | . . . . . Treads 711 | . 177 477 56 1 Legs 130 | 1 19 . . 110 Wheels . | . . . . . Hover . | . . . . . Flight . | . . . . . Fastest Speed 120 | 120 120 160 160 120 Average Speed 153 | 120 156 160 160 120 Slowest Speed 160 | 120 160 160 160 160 Overloaded Moves . | . . . . . Propulsion Burnouts . | . . . . . Robots Hopped . | . . . . . Cave-ins Triggered . | . . . . . Exploration Rate (%) 35 | 2 39 90 12 33 Regions Visited 4 Branch Regions 2 Pre-discovered Areas 1 | . . 1 . . Known Exits Taken 1 | . 1 . . . Unknown Exits Taken 3 | 1 . 1 1 . Scrap Searched 3 | . . 1 . 2 Spaces Dug . | . . . . . Terrain Destroyed 2 | . 2 . . . Melee . | . . . . . Projectile . | . . . . . AOE 2 | . 2 . . . Terrain Rammed . | . . . . . Walls Destroyed . | . . . . . Machines Disabled . | . . . . . Actions | -11 -10 -10 -9 -9 --------- Run | Yrd Mat Min Mat Min Total 945 | . 271 488 69 117 Wait 65 | . 52 1 12 . Move 837 | . 195 476 55 111 Hop . | . . . . . Pick Up 1 | . . 1 . . Fast Attach 4 | . 4 . . . Attach 5 | . 2 . 1 2 Detach 5 | . 3 . . 2 Swap 4 | . 3 1 . . Drop 6 | . 3 3 . . Fire 14 | . 9 5 . . Melee . | . . . . . Ram . | . . . . . Kick 2 | . . . . 2 Crush 2 | . . 1 1 . Escape Stasis . | . . . . . Rewire . | . . . . . Trap . | . . . . . Miscellaneous . | . . . . . Route ------- -11/Scrapyard -10/Materials (discovered 2 exits: *Min x2) -10/Mines (discovered 2 exits: [*Mat x2]) -9/Materials -9/Mines (discovered 1 exit: [*Mat]) History --------- Turn | Location | Event 1 | -11/Scrapyard | Discovered new exit (range 0) 1 | -11/Scrapyard | Entered Materials 214 | -10/Materials | Identified exit to Mines 332 | -10/Materials | Build established: Mutant 398 | -10/Materials | Entered Mines 805 | -10/Mines | Discovered new exit (range 5) 1033 | -10/Mines | Discovered new exit (range 7) 1038 | -10/Mines | Received a Rocket Launcher from a helpful Derelict 1180 | -10/Mines | Entered Materials 1180 | -9/Materials | Evolved 2 slots: Utility x2 1255 | -9/Materials | Met 8R-AWN 1255 | -9/Materials | Discovered new exit (range 8) 1283 | -9/Materials | Entered Mines 1285 | -9/Mines | Followed 8R-AWN into the Mines 1294 | -9/Mines | Learned location of 1 exit from Materials 1308 | -9/Mines | Discovered new exit (range 6) 1422 | -9/Mines | Self-destructed Last Messages --------------- 8R-AWN: Took you long enough, hurry up, we still have some ground to cover! 01288_ Searching scrap... 01288_ Found 29 Matter. 01288_ Found Weapon Shielding. 01288_ Found 23 Matter. 01289_ Acquired 20 matter. 01294_ Acquired derelict log, extracted data. Data stored: Materials exits (x1). 01304_ Kicked T-07 Excavator. 01307_ Searching scrap... 01307_ Found Arm. Wheel. 01307_ Found Tractor Beam. 01307_ Found Hcp. Battery. 01307_ Found 17 Matter. 01308_ EXIT=FOUND 01316_ Kicked R-06 Scavenger. 01344_ K-01 Serf collects debris. 01388_ Imp. Targeting Computer destroyed. 01396_ K-01 Serf collects debris. Map ----- +----------------------------------------------------+ | ##???????????# % ###??????????????????? | | #???????????####### ##????????????????????? | | #?????????????????####?????????????????????? | | ##??????????????????????????????????????????? | | ##???????????????????????????????????????????? | | ##????????????????????????????????????????????? | | ##?????????????????????????????????????????????? | | ???????????????????????????????????????????????? | | ???????????????????????????????????????????????? | | ???????????????????????????????????????????????? | | ????? #????????????????????????????????????????? | | ## #????????????????????????????????????????? | | #?###????????????????????????????????????? | | ## ????????????????????????????????????? | | ????? ### #????????????????????????????????????? | | ##??????# #????????????????????????????????????? | | ##?????# #????????????????????????????????????? | | #?????# #????????????????????????????????????? | | ##????# #????????????????????????????????????? | | ! #????# #????????????????????????????????????? | | #???## ##???????????????????????????????????? | | ##??## #################???????????????????? | | ####### #???????????????????? | | k #???????????????????? | | ###### ############## #???????????????????? | | ?????## ###????????????#@ #???????????????????? | | ??????####??????????????# #???????????????????? | | ????????????????????????# s#???????????????????? | | ????????????????????????# s???????????????????? | | ????????????????????????# s ??????????????????? | | ????????????????????????######?????????????????? | | ???????????????????????????????????????????????? | | ???????????????????????????????????????????????? | | ???????????????????????????????????????????????? | | ???????????????????????????????????????????????? | | ???????????????????????????????????????????????? | | ???????????????????????????????????????????????? | | ???????????????????????????????????????????????? | | ???????????????????????????????????????????????? | | ???????????????????????????????????????????????? | | ???????????????????????????????????????????????? | | ???????????????????????????????????????????????? | | ???????????????????????????????????????????????? | | ???????????????????????????????????????????????? | | ???????????????????????????????????????????????? | | ???????????????????????????????????????????????? | | ???????????????????????????????????????????????? | | ???????????????????????????????????????????????? | | ???????????????????????????????????????????????? | | ???????????????????????????????????????????????? | +----------------------------------------------------+ Best States ------------- Heat Dissipation 28 Energy Generation 14 Energy Capacity 250 Matter Stores 300 Matter Capacity 300 Sight Range 16 Terrain Scan Density 10 Core Shielding 20 Evasion (%) 55 Targeting Accuracy 6 Recoil Reduction 2 Item Schematics ----------------- None Robot Schematics ------------------ None Fabricated ------------ Nothing Alien Tech Used ----------------- None Achievements -------------- None Challenges ------------ None Game ------ Seed ConstructLauncherGenerator Manual? 0 Play Time 00:12:36 Cumulative 8.2 hours Start 2024.04.24 @ 15:45:11 End 2024.04.24 @ 16:12:02 Sessions 1 Manual Loads 0 Difficulty Rogue Special Mode None Game No. 14 Rogue 14 Adventurer 0 Explorer 0 Win Type - Total 0 Types 0/0/0/0/0/0/0/0/0 Lore% 8 Gallery% 22 Achievement% 16 Wizard Run 0 Options --------- Layout 2 ASCII 1 Keyboard 1 Movement Vi Keybinds 0 Fullscreen 0 Font 16/Tamsyn Map View 64x57 Zoom Use 0% Tactical HUD 1 Map Filters NONE Filters NONE Steam 0 RUN: 005263ed-7aa3-40db-adf6-59d7b839630a